bitfinex-derivatives/quotes_BTCF0:USTF0_20210706
["timestamp","ask_amount","ask_price","bid_price","bid_amount"]
[1625542396321,2.74859181,33916.0,33915.0,6.61591617]
[1625542396870,2.74859181,33916.0,33915.0,6.60717845]
[1625542398073,2.80759181,33916.0,33915.0,6.60717845]
[1625542398775,5.42839985,33916.0,33915.0,5.07907654]
[1625542398876,5.42839985,33916.0,33915.0,4.76341654]
[1625542400277,5.42839985,33916.0,33915.0,4.75242468]
[1625542401229,5.51669985,33916.0,33915.0,4.75242468]
[1625542401730,5.42839985,33916.0,33915.0,4.75242468]
[1625542402482,5.42839985,33916.0,33915.0,3.39569031]
[1625542405040,5.68998985,33916.0,33915.0,3.39569031]
[1625542410398,5.42839985,33916.0,33915.0,3.39569031]
[1625542415461,4.03064721,33916.0,33915.0,4.75574152]
[1625542416717,4.03064721,33916.0,33915.0,3.39569031]
[1625542417623,5.42671907,33916.0,33915.0,3.39569031]
[1625542419074,4.03064721,33916.0,33915.0,3.39569031]
[1625542420230,4.03064721,33916.0,33915.0,4.75567806]
[1625542420683,4.03064721,33916.0,33915.0,3.39569031]
[1625542421983,4.03064721,33916.0,33915.0,4.75560165]
[1625542423940,4.03064721,33916.0,33915.0,3.39569031]
[1625542426193,4.03064721,33916.0,33915.0,4.75591885]
[1625542427745,4.03064721,33916.0,33915.0,3.39569031]
[1625542429350,4.03064721,33916.0,33915.0,4.7561318]
[1625542430653,4.03064721,33916.0,33915.0,4.76714298]
[1625542433609,4.31598721,33916.0,33915.0,4.76714298]
[1625542433959,4.31598721,33916.0,33915.0,4.7561318]
[1625542436766,4.03064721,33916.0,33915.0,4.7561318]
[1625542439021,4.03064721,33916.0,33915.0,3.39569031]
[1625542439973,4.03064721,33916.0,33915.0,4.75645872]
[1625542441472,4.03064721,33916.0,33915.0,5.09663872]
[1625542442075,4.03064721,33916.0,33915.0,3.73587031]
[1625542442476,5.42687444,33916.0,33915.0,3.73587031]
[1625542445384,5.42687444,33916.0,33915.0,3.74689072]
[1625542445734,5.42687444,33916.0,33915.0,8.09059072]
[1625542446037,4.03064721,33916.0,33915.0,9.45113698]
[1625542447390,4.03064721,33916.0,33915.0,5.10743698]
[1625542447589,4.03064721,33916.0,33915.0,4.76725698]
[1625542447892,4.03064721,33916.0,33915.0,4.75623657]
[1625542448592,5.4270636,33916.0,33915.0,4.75623657]
[1625542449546,5.4270636,33916.0,33915.0,3.39569031]
[1625542449996,5.4860636,33916.0,33915.0,3.39569031]
[1625542453159,5.4860636,33916.0,33915.0,4.75706937]
[1625542453809,5.4860636,33916.0,33915.0,3.39569031]
[1625542454311,5.4860636,33916.0,33915.0,4.75750845]
[1625542455166,5.4270636,33916.0,33915.0,4.97706845]
[1625542455363,5.4270636,33916.0,33915.0,4.98809666]
[1625542458571,5.4270636,33916.0,33915.0,4.76853666]
[1625542464686,5.4270636,33916.0,33915.0,4.82753666]
[1625542465036,4.03064721,33916.0,33915.0,4.82753666]
[1625542466791,4.03064721,33916.0,33915.0,5.15155666]
[1625542469753,4.11864721,33916.0,33915.0,5.24055666]
[1625542469903,4.11864721,33916.0,33915.0,4.91653666]
[1625542470004,4.03064721,33916.0,33915.0,4.91653666]
[1625542470308,4.03064721,33916.0,33915.0,4.82753666]
[1625542470705,4.03064721,33916.0,33915.0,4.76853666]
[1625542470957,5.42806922,33916.0,33915.0,4.76853666]
[1625542478427,4.94691834,33916.0,33915.0,4.76853666]
[1625542478928,4.94691834,33916.0,33915.0,4.85723666]
[1625542479330,4.94691834,33916.0,33915.0,4.76853666]
[1625542479881,5.9092201,33916.0,33915.0,4.76853666]
[1625542481181,5.9092201,33916.0,33915.0,5.09346666]
[1625542481732,5.9092201,33916.0,33915.0,5.18276666]
[1625542481835,5.9092201,33916.0,33915.0,5.09346666]
[1625542482133,4.51179809,33916.0,33915.0,5.09346666]
[1625542482636,5.90933079,33916.0,33915.0,5.09346666]
[1625542484238,5.90933079,33916.0,33915.0,4.76853666]
[1625542486294,4.94702903,33916.0,33915.0,4.76853666]
[1625542487195,3.54949633,33916.0,33915.0,4.76853666]
[1625542487896,4.51179809,33916.0,33915.0,4.76853666]
[1625542488096,4.51179809,33916.0,33915.0,4.85743666]
[1625542488750,4.51179809,33916.0,33915.0,4.76853666]
[1625542489506,4.51179809,33916.0,33915.0,5.09666666]
[1625542494014,4.51179809,33916.0,33915.0,5.10540438]
[1625542495071,4.51179809,33916.0,33915.0,5.09666666]
[1625542496420,4.51179809,33916.0,33915.0,5.18516666]
[1625542496520,4.51179809,33916.0,33915.0,5.09666666]
[1625542496621,4.45279809,33916.0,33915.0,5.09666666]
[1625542496721,4.45279809,33916.0,33915.0,5.10540409]
[1625542497576,3.22974269,33916.0,33915.0,6.64112098]
[1625542508093,3.22974269,33916.0,33915.0,6.62888844]
[1625542508449,3.22974269,33916.0,33915.0,6.64112034]
[1625542509849,1.46062224,33916.0,33915.0,6.64112034]
[1625542509948,1.2200468,33916.0,33915.0,6.64112034]
[1625542510048,1.2200468,33916.0,33915.0,7.08323734]
[1625542510300,0.52263252,33916.0,33915.0,7.08323734]
[1625542510400,0.52263252,33916.0,33915.0,7.32381278]
[1625542510900,0.87191678,33916.0,33915.0,7.32381278]
[1625542511654,0.52401247,33916.0,33915.0,7.32381278]
[1625542513611,0.61143839,33916.0,33915.0,7.32381278]
[1625542516016,0.26215413,33916.0,33915.0,7.32381278]
[1625542518974,0.26215413,33916.0,33915.0,7.38281278]
[1625542519174,0.26215413,33916.0,33915.0,7.47091278]
[1625542519275,0.26215413,33916.0,33915.0,7.38281278]
[1625542519725,0.61118539,33917.0,33915.0,7.38281278]
[1625542519874,0.61118539,33917.0,33916.0,0.01101659]
[1625542520076,0.61118539,33917.0,33916.0,0.17054793]
[1625542520176,0.61118539,33917.0,33916.0,0.52420093]
[1625542520275,0.61118539,33917.0,33916.0,6.8148014]
[1625542520726,0.26204173,33917.0,33916.0,6.8148014]
[1625542521125,0.26204173,33917.0,33916.0,6.9039014]
[1625542521275,0.87261303,33918.0,33916.0,6.9039014]
[1625542521276,0.61105995,33918.0,33916.0,6.9039014]
[1625542521376,0.61105995,33918.0,33917.0,0.01101006]
[1625542521727,0.61105995,33918.0,33917.0,0.46829208]
[1625542521828,0.262007,33918.0,33917.0,6.7553898]
[1625542522779,0.262007,33918.0,33917.0,6.8441898]
[1625542522880,0.08739381,33918.0,33917.0,6.8441898]
[1625542524036,0.61093874,33919.0,33917.0,6.8441898]
[1625542524336,0.61093874,33919.0,33918.0,0.02323699]
[1625542524536,0.61093874,33919.0,33918.0,6.30834901]
[1625542524634,0.61093874,33919.0,33918.0,6.98981445]
[1625542524836,0.08736558,33919.0,33918.0,6.98981445]
[1625542525188,0.85141637,33920.0,33918.0,6.98981445]
[1625542525486,0.91041637,33920.0,33919.0,0.01100225]
[1625542525687,0.91041637,33920.0,33919.0,4.7657089]
[1625542525688,1.52034229,33920.0,33919.0,4.7657089]
[1625542525788,1.52034229,33920.0,33919.0,5.20550353]
[1625542526140,2.56662159,33920.0,33919.0,5.20550353]
[1625542526739,6.43962159,33920.0,33919.0,5.20550353]
[1625542526838,6.43962159,33920.0,33919.0,4.76920353]
[1625542526938,6.43962159,33920.0,33919.0,4.75820128]
[1625542527089,6.49862159,33920.0,33919.0,4.75820128]
[1625542527340,7.71933976,33920.0,33919.0,3.39971367]
[1625542527793,9.11451907,33920.0,33919.0,2.21103701]
[1625542528491,5.24151907,33920.0,33919.0,2.21103701]
[1625542528592,5.48209451,33920.0,33919.0,2.21103701]
[1625542529243,4.0869152,33920.0,33919.0,2.21103701]
[1625542529546,5.48214904,33920.0,33919.0,2.21103701]
[1625542529844,5.48214904,33920.0,33919.0,3.40089595]
[1625542529845,4.0869152,33920.0,33919.0,3.40089595]
[1625542530042,4.0279152,33920.0,33919.0,3.40089595]
[1625542530241,4.0869152,33920.0,33919.0,3.40089595]
[1625542530442,4.0279152,33920.0,33919.0,3.40089595]
[1625542530944,4.0279152,33920.0,33919.0,3.41190153]
[1625542531144,2.80719703,33920.0,33919.0,4.77062386]
[1625542532996,2.32604615,33920.0,33919.0,4.77062386]
[1625542533547,3.28834791,33920.0,33919.0,4.77062386]
[1625542534699,3.28834791,33920.0,33919.0,4.75961828]
[1625542534951,3.28834791,33920.0,33919.0,4.77061513]
[1625542536760,3.28834791,33920.0,33919.0,4.85951513]
[1625542536858,3.28834791,33920.0,33919.0,4.77061513]
[1625542540264,3.28834791,33920.0,33919.0,14.77061513]
[1625542541115,2.32604615,33920.0,33919.0,14.77061513]
[1625542541871,3.04777247,33920.0,33919.0,14.77061513]
[1625542543171,3.38140247,33920.0,33919.0,14.77061513]
[1625542543572,3.38140247,33920.0,33919.0,14.75961828]
[1625542543823,4.60238245,33920.0,33919.0,13.40089595]
[1625542544376,9.79365242,33920.0,33919.0,13.40089595]
[1625542545024,9.85265242,33920.0,33919.0,13.40089595]
[1625542545227,9.85265242,33920.0,33919.0,12.21103701]
[1625542545730,6.05685242,33920.0,33919.0,12.21103701]
[1625542546779,6.05685242,33920.0,33919.0,13.40142143]
[1625542547180,6.05685242,33920.0,33919.0,12.21103701]
[1625542547481,6.05685242,33920.0,33919.0,13.40154027]
[1625542548984,5.3351261,33920.0,33919.0,13.40154027]
[1625542549935,6.29742786,33920.0,33919.0,13.40154027]
[1625542550736,6.23842786,33920.0,33919.0,13.40154027]
[1625542550838,4.84295789,33920.0,33919.0,13.40154027]
[1625542551141,4.50932789,33920.0,33919.0,14.76082675]
[1625542551238,4.50932789,33920.0,33919.0,14.77183094]
[1625542551539,3.28834791,33920.0,33919.0,14.77183094]
[1625542552241,3.28834791,33920.0,33919.0,14.83083094]
[1625542554749,3.28834791,33920.0,33919.0,18.49733094]
[1625542554847,3.22934791,33920.0,33919.0,18.49733094]
[1625542554947,3.22934791,33920.0,33919.0,18.58663094]
[1625542555047,3.22934791,33920.0,33919.0,18.49733094]
[1625542555498,2.18306861,33920.0,33919.0,18.49733094]
[1625542556299,2.18306861,33920.0,33919.0,18.50606748]
[1625542556500,2.18306861,33920.0,33919.0,18.49733094]
[1625542557053,2.18306861,33920.0,33919.0,18.58533094]
[1625542557356,2.18306861,33920.0,33919.0,18.49733094]
[1625542557812,2.18306861,33920.0,33919.0,18.50606747]
[1625542558008,2.18306861,33920.0,33919.0,20.03411128]
[1625542559110,2.18306861,33920.0,33919.0,20.02537475]
[1625542559409,2.18306861,33920.0,33919.0,20.03411128]
[1625542560614,2.18306861,33920.0,33919.0,16.36761128]
[1625542560713,2.53768861,33920.0,33919.0,16.36761128]
[1625542560964,2.53768861,33920.0,33919.0,16.35887475]
[1625542561115,2.53768861,33920.0,33919.0,14.83083094]
[1625542561614,3.58463101,33920.0,33919.0,14.83083094]
[1625542563770,3.58463101,33920.0,33919.0,14.77183094]
[1625542564571,4.80617527,33920.0,33919.0,14.77183094]
[1625542567380,4.74717527,33920.0,33919.0,14.77183094]
[1625542567583,4.74717527,33920.0,33919.0,14.83956781]
[1625542567681,4.45155527,33920.0,33919.0,14.83956781]
[1625542568134,1.83464687,33920.0,33919.0,16.36221662]
[1625542568584,1.83464687,33920.0,33919.0,16.45031662]
[1625542568685,1.22435948,33920.0,33919.0,16.45031662]
[1625542569584,1.04971249,33920.0,33919.0,16.45031662]
[1625542570988,0.96230176,33920.0,33919.0,16.45031662]
[1625542571386,1.04969973,33920.0,33919.0,16.45031662]
[1625542571686,0.96230176,33920.0,33919.0,16.45031662]
[1625542571786,0.72172632,33920.0,33919.0,16.45031662]
[1625542572288,0.72172632,33920.0,33919.0,16.69089206]
[1625542575052,0.72172632,33920.0,33919.0,16.68215519]
[1625542576448,0.72172632,33920.0,33919.0,16.69089154]
[1625542578801,0.72172632,33920.0,33919.0,16.60279154]
[1625542579051,0.72172632,33920.0,33919.0,16.59405519]
[1625542579302,0.72172632,33920.0,33919.0,16.60279164]
[1625542595795,0.72172632,33920.0,33919.0,16.82749164]
[1625542597952,0.72147461,33920.0,33919.0,16.82749164]
[1625542603211,0.72147461,33920.0,33919.0,16.81648745]
[1625542603465,0.72147461,33920.0,33919.0,16.8274]
[1625542609273,0.72147461,33920.0,33919.0,16.6027]
[1625542611725,0.26190743,33922.0,33919.0,16.36212456]
[1625542612027,0.26190743,33922.0,33920.0,0.01092993]
[1625542612126,0.26190743,33922.0,33920.0,0.06992993]
[1625542612226,0.26190743,33922.0,33921.0,0.01093056]
[1625542612327,0.26190743,33922.0,33921.0,0.06993056]
[1625542612577,0.26190743,33922.0,33921.0,0.08216147]
[1625542612680,0.26190743,33922.0,33921.0,6.32294452]
[1625542612780,0.74305831,33922.0,33921.0,6.32294452]
[1625542616241,0.74305831,33922.0,33921.0,6.41124452]
[1625542618746,0.80205831,33922.0,33921.0,6.35224452]
[1625542618848,1.06384831,33922.0,33921.0,6.25301396]
[1625542619047,2.02344601,33922.0,33921.0,4.73498565]
[1625542619148,2.02344601,33922.0,33921.0,4.74592521]
[1625542619398,3.0703815,33922.0,33921.0,4.74592521]
[1625542619497,3.1293815,33922.0,33921.0,4.74592521]
[1625542619697,3.1293815,33922.0,33921.0,4.73718885]
[1625542620299,3.0703815,33922.0,33921.0,4.73718885]
[1625542620599,3.1293815,33922.0,33921.0,4.73718885]
[1625542620799,3.0703815,33922.0,33921.0,4.73718885]
[1625542621000,3.1293815,33922.0,33921.0,4.73718885]
[1625542621102,4.35084202,33922.0,33921.0,4.73718885]
[1625542621851,9.38664202,33922.0,33921.0,4.73718885]
[1625542622352,9.38664202,33922.0,33921.0,4.72624929]
[1625542624161,10.8718146,33922.0,33921.0,3.37689079]
[1625542624513,9.47574202,33922.0,33921.0,3.37689079]
[1625542624814,10.87161602,33922.0,33921.0,3.37689079]
[1625542627720,10.78251602,33922.0,33921.0,3.37689079]
[1625542628723,10.86991602,33922.0,33921.0,3.37689079]
[1625542628972,10.78251602,33922.0,33921.0,3.37689079]
[1625542629073,10.78251602,33922.0,33921.0,2.19620211]
[1625542633988,10.78251602,33922.0,33921.0,1.18418324]
[1625542635591,10.78251602,33922.0,33921.0,0.50950399]
[1625542635942,10.78251602,33922.0,33921.0,0.34251263]
[1625542636396,10.78251602,33922.0,33921.0,0.51199644]
[1625542636895,10.78251602,33922.0,33921.0,0.17297836]
[1625542637495,10.78251602,33922.0,33921.0,0.00349455]
[1625542638198,10.78251602,33922.0,33920.0,0.41965862]
[1625542638297,10.72351602,33922.0,33920.0,0.33855862]
[1625542638401,0.5,33921.0,33920.0,0.33855862]
[1625542638596,0.618,33921.0,33920.0,0.27955862]
[1625542638798,7.06747507,33921.0,33919.0,10.0]
[1625542639301,0.24057544,33920.0,33919.0,10.0]
[1625542639401,0.79957544,33920.0,33919.0,10.0]
[1625542639500,9.05146579,33920.0,33919.0,10.0]
[1625542640400,9.06741636,33920.0,33919.0,10.0]
[1625542640701,9.05146579,33920.0,33919.0,10.0]
[1625542640800,9.15146579,33920.0,33919.0,10.0]
[1625542641604,9.09246579,33920.0,33919.0,9.9116]
[1625542641702,9.09246579,33920.0,33919.0,9.8526]
[1625542641804,9.15146579,33920.0,33919.0,9.8526]
[1625542641907,9.09246579,33920.0,33919.0,9.7936]
[1625542642006,9.09246579,33920.0,33919.0,9.6934]
[1625542642105,9.09246579,33920.0,33919.0,9.6787]
[1625542643156,9.09246579,33920.0,33919.0,9.32904059]
[1625542644309,9.09246579,33920.0,33919.0,9.21084059]
[1625542644407,9.09246579,33920.0,33919.0,9.13794059]
[1625542644758,9.30094091,33920.0,33919.0,9.13794059]
[1625542646167,9.30094091,33920.0,33919.0,9.13394059]
[1625542646265,9.30094091,33920.0,33919.0,7.58454059]
[1625542646363,9.30094091,33920.0,33919.0,7.55464059]
[1625542646864,9.30094091,33920.0,33919.0,7.55064059]
[1625542647013,9.09246579,33920.0,33919.0,7.55064059]
[1625542647562,9.09246579,33920.0,33919.0,7.46164059]
[1625542647764,9.09246579,33920.0,33919.0,7.42164059]
[1625542648115,9.03346579,33920.0,33919.0,7.36264059]
[1625542649113,9.09246579,33920.0,33919.0,7.36264059]
[1625542649615,9.09246579,33920.0,33919.0,7.32014059]
[1625542650164,9.12246579,33920.0,33919.0,7.32014059]
[1625542650817,9.12246579,33920.0,33919.0,7.29514059]
[1625542650916,9.12246579,33920.0,33919.0,7.27414059]
[1625542651218,9.12246579,33920.0,33919.0,6.92443516]
[1625542651717,9.12246579,33920.0,33919.0,5.60720516]
[1625542651817,9.12246579,33920.0,33919.0,5.53360516]
[1625542651922,9.12246579,33920.0,33919.0,4.76119245]
[1625542652921,9.12246579,33920.0,33919.0,4.70209245]
[1625542653423,9.12246579,33920.0,33919.0,4.69659245]
[1625542654577,9.12246579,33920.0,33919.0,4.65659245]
[1625542657280,9.18146579,33920.0,33919.0,4.65659245]
[1625542658982,9.18146579,33920.0,33919.0,4.65259245]
[1625542659082,9.15146579,33920.0,33919.0,4.65259245]
[1625542659486,9.09246579,33920.0,33919.0,4.30289527]
[1625542660035,7.40838292,33920.0,33919.0,4.30289527]
[1625542665697,7.42434001,33920.0,33919.0,4.30289527]
[1625542675374,9.15797095,33920.0,33919.0,4.30289527]
[1625542680587,9.09897095,33920.0,33919.0,4.30289527]
[1625542680686,8.59897095,33920.0,33919.0,4.51899527]
[1625542681138,6.86534001,33920.0,33919.0,4.51899527]
[1625542683599,6.86534001,33920.0,33919.0,4.57799527]
[1625542683898,6.86534001,33920.0,33919.0,9.61829124]
[1625542683998,6.80634001,33920.0,33919.0,9.61829124]
[1625542684250,6.70634001,33920.0,33919.0,9.61829124]
[1625542685005,5.12159091,33920.0,33919.0,9.61829124]
[1625542685508,3.72708976,33920.0,33919.0,9.61829124]
[1625542685906,5.11618678,33920.0,33919.0,9.61829124]
[1625542686657,5.11618678,33920.0,33919.0,9.67729124]
[1625542687010,3.72708976,33920.0,33919.0,9.67729124]
[1625542687762,3.72708976,33920.0,33919.0,9.61829124]
[1625542688614,3.72708976,33920.0,33919.0,9.67729124]
[1625542688714,3.72708976,33920.0,33919.0,9.61829124]
[1625542692226,3.72708976,33920.0,33919.0,9.67729124]
[1625542693079,2.50687946,33920.0,33919.0,9.67729124]
[1625542693477,2.50687946,33920.0,33919.0,9.61829124]
[1625542693828,3.7234938,33920.0,33919.0,9.61829124]
[1625542696634,3.7234938,33920.0,33919.0,9.61479527]
[1625542697485,3.7234938,33920.0,33919.0,9.61829054]
[1625542697939,3.7234938,33920.0,33919.0,9.61479527]
[1625542698741,3.7234938,33920.0,33919.0,9.61829052]
[1625542701494,3.7234938,33920.0,33919.0,9.61479527]
[1625542701793,3.7234938,33920.0,33919.0,9.61829051]
[1625542705201,3.7234938,33920.0,33919.0,4.52249051]
[1625542705302,3.7824938,33920.0,33919.0,4.30639051]
[1625542705804,5.1726266,33920.0,33919.0,4.30639051]
[1625542706210,5.3938166,33920.0,33919.0,4.30639051]
[1625542706311,5.3938166,33920.0,33919.0,4.30289527]
[1625542707314,6.9579806,33920.0,33919.0,4.30289527]
[1625542708669,6.97388356,33920.0,33919.0,4.30639117]
[1625542709470,6.97388356,33920.0,33919.0,4.30289527]
[1625542710271,6.97388356,33920.0,33919.0,4.30639119]
[1625542710470,6.97388356,33920.0,33919.0,4.30289527]
[1625542711521,7.47388356,33920.0,33919.0,4.30289527]
[1625542712372,7.53288356,33920.0,33919.0,4.30289527]
[1625542712871,9.27200012,33920.0,33919.0,4.30289527]
[1625542713071,9.27200012,33920.0,33919.0,3.80269527]
[1625542713873,9.21300012,33920.0,33919.0,3.80269527]
[1625542713976,9.21300012,33920.0,33919.0,3.74369527]
[1625542714627,9.21300012,33920.0,33919.0,3.3940263]
[1625542714727,9.27200012,33920.0,33919.0,3.3940263]
[1625542716838,9.48074053,33920.0,33919.0,3.3940263]
[1625542720794,9.58074053,33920.0,33919.0,3.3940263]
[1625542722793,9.58074053,33920.0,33919.0,3.0443324]
[1625542729908,9.37200012,33920.0,33919.0,3.0443324]
[1625542731212,9.37200012,33920.0,33919.0,2.69464577]
[1625542732366,9.58059448,33920.0,33919.0,2.69464577]
[1625542732915,9.58059448,33920.0,33919.0,2.62124577]
[1625542733015,9.52159448,33920.0,33919.0,2.56224577]
[1625542733516,9.55656676,33920.0,33919.0,2.56224577]
[1625542733617,4.6835156,33920.0,33919.0,2.56224577]
[1625542733918,9.55214644,33920.0,33919.0,1.86277656]
[1625542734118,9.51717416,33920.0,33919.0,1.86277656]
[1625542734619,9.55214755,33920.0,33919.0,1.86277656]
[1625542736026,9.61114755,33920.0,33919.0,1.86277656]
[1625542736327,9.55214755,33920.0,33919.0,1.80377656]
[1625542736728,9.61114755,33920.0,33919.0,1.79777656]
[1625542738330,9.61114755,33920.0,33919.0,1.73967656]
[1625542738687,9.61114755,33920.0,33919.0,1.66667656]
[1625542738987,9.61114755,33920.0,33919.0,1.55417656]
[1625542739437,9.61114755,33920.0,33919.0,1.20442456]
[1625542739737,9.61114755,33920.0,33919.0,1.13242456]
[1625542740439,9.61114755,33920.0,33919.0,0.43291381]
[1625542741539,9.61114755,33920.0,33919.0,0.42921381]
[1625542742791,9.61114755,33920.0,33919.0,0.35621381]
[1625542742892,9.61114755,33920.0,33919.0,0.28331381]
[1625542744698,9.61114755,33920.0,33919.0,0.23321381]
[1625542746402,9.61114755,33920.0,33919.0,0.19321381]
[1625542746601,0.034,33914.0,33912.0,0.008]
[1625542746702,0.093,33914.0,33912.0,0.008]
[1625542746802,0.152,33914.0,33912.0,0.008]
[1625542746902,0.51591364,33913.0,33912.0,0.008]
[1625542747002,0.57491364,33913.0,33912.0,0.008]
[1625542747103,8.79347471,33913.0,33912.0,0.008]
[1625542747754,8.98047471,33913.0,33894.0,0.25608922]
[1625542748154,8.88047471,33913.0,33894.0,0.25608922]
[1625542748255,8.8806234,33911.0,33910.0,0.008]
[1625542748357,9.3806234,33911.0,33910.0,0.008]
[1625542748454,9.4396234,33911.0,33910.0,0.008]
[1625542748759,9.45555377,33911.0,33910.0,0.008]
[1625542748858,14.57945377,33911.0,33910.0,0.008]
[1625542749358,14.66755377,33911.0,33910.0,0.008]
[1625542750111,13.94582745,33911.0,33910.0,0.008]
[1625542750612,14.90812921,33911.0,33910.0,0.008]
[1625542751267,14.90812921,33911.0,33909.0,0.008]
[1625542751665,0.01593015,33910.0,33909.0,0.008]
[1625542751769,0.07493015,33910.0,33909.0,0.008]
[1625542752017,6.49882598,33910.0,33909.0,0.008]
[1625542752118,6.99882598,33910.0,33909.0,0.008]
[1625542753920,6.93982598,33910.0,33909.0,0.008]
[1625542755221,8.17668977,33910.0,33909.0,0.008]
[1625542756023,8.73568977,33910.0,33909.0,0.008]
[1625542756124,8.67668977,33910.0,33909.0,0.008]
[1625542756477,8.17668977,33910.0,33909.0,0.008]
[1625542757226,8.17668977,33910.0,33905.0,0.002]
[1625542757326,8.17668977,33910.0,33905.0,0.061]
[1625542757577,6.42869902,33906.0,33905.0,0.061]
[1625542757978,6.44462888,33906.0,33905.0,0.061]
[1625542758731,6.92577976,33906.0,33905.0,0.061]
[1625542759082,6.9098499,33906.0,33905.0,0.061]
[1625542759333,6.92577959,33906.0,33905.0,0.06449739]
[1625542759682,6.92577959,33906.0,33905.0,0.061]
[1625542759881,6.92577959,33906.0,33905.0,0.0644974]
[1625542762143,2.06073835,33906.0,33905.0,0.0644974]
[1625542762242,2.06073835,33906.0,33905.0,0.1234974]
[1625542762642,2.06073835,33906.0,33905.0,0.4572774]
[1625542762744,5.36651721,33906.0,33905.0,0.4572774]
[1625542763046,6.93261188,33906.0,33905.0,0.4572774]
[1625542763296,5.36651721,33906.0,33905.0,0.4572774]
[1625542764946,5.35058752,33906.0,33905.0,0.4572774]
[1625542766248,5.35058752,33906.0,33905.0,0.4552774]
[1625542767552,4.86943664,33906.0,33905.0,0.4552774]
[1625542767652,3.47824355,33906.0,33905.0,0.4552774]
[1625542767953,1.47664355,33906.0,33905.0,0.4552774]
[1625542768402,1.47664355,33906.0,33905.0,0.3962774]
[1625542768503,1.47664355,33906.0,33905.0,0.0624974]
[1625542768854,1.95779443,33906.0,33905.0,0.0624974]
[1625542769004,1.95779443,33906.0,33905.0,0.1214974]
[1625542769304,3.52636172,33906.0,33905.0,0.1214974]
[1625542769959,3.52636172,33906.0,33905.0,0.0624974]
[1625542770855,3.84825488,33906.0,33905.0,0.0624974]
[1625542773513,5.59252732,33906.0,33905.0,0.0624974]
[1625542779728,5.68162732,33906.0,33905.0,0.0034974]
[1625542780128,5.68162732,33906.0,33902.0,0.00349767]
[1625542780229,5.68162732,33906.0,33902.0,0.06249767]
[1625542780331,5.68162732,33906.0,33902.0,0.00349767]
[1625542780428,0.01593494,33905.0,33902.0,0.00349767]
[1625542780730,2.09373465,33903.0,33902.0,0.00349767]
[1625542780981,2.57488553,33903.0,33902.0,0.00349767]
[1625542781131,2.57488553,33903.0,33902.0,0.06249767]
[1625542781231,2.59082062,33903.0,33902.0,0.06249767]
[1625542781833,2.67872062,33903.0,33902.0,0.06249767]
[1625542782284,4.42342029,33903.0,33902.0,0.06249767]
[1625542782784,5.81914098,33903.0,33902.0,0.06249767]
[1625542783842,5.81914098,33903.0,33902.0,0.12149767]
[1625542784038,5.81914098,33903.0,33902.0,0.06249767]
[1625542787042,5.73124098,33903.0,33902.0,0.06249767]
[1625542787393,5.2500901,33903.0,33902.0,0.06249767]
[1625542787643,3.33084852,33903.0,33902.0,0.06249767]
[1625542787893,4.29315028,33903.0,33902.0,0.06249767]
[1625542788093,4.38025028,33903.0,33902.0,0.06249767]
[1625542788343,7.5210822,33903.0,33902.0,0.12149767]
[1625542789094,7.5210822,33903.0,33902.0,0.06249767]
[1625542789195,7.5210822,33903.0,33902.0,0.12149767]
[1625542789594,7.4339822,33903.0,33902.0,0.12149767]
[1625542791500,7.4339822,33903.0,33902.0,0.06249767]
[1625542791599,7.4339822,33903.0,33902.0,0.12149767]
[1625542794605,7.4339822,33903.0,33902.0,0.00349767]
[1625542795005,7.4339822,33903.0,33902.0,0.06249767]
[1625542795105,7.4339822,33903.0,33902.0,0.059]
[1625542795305,7.4339822,33903.0,33902.0,0.06249784]
[1625542796158,7.4339822,33903.0,33902.0,0.36023784]
[1625542796911,12.3554822,33903.0,33902.0,0.36023784]
[1625542797861,12.3554822,33903.0,33902.0,0.06249784]
[1625542798212,13.40288174,33903.0,33902.0,0.06249784]
[1625542798765,13.40288174,33903.0,33902.0,0.00349784]
[1625542798862,13.40288174,33903.0,33902.0,0.06249784]
[1625542799012,13.40288174,33903.0,33902.0,0.059]
[1625542799315,13.40288174,33903.0,33902.0,0.003498]
[1625542799563,13.90288174,33903.0,33902.0,0.003498]
[1625542799663,13.49128174,33903.0,33902.0,0.003498]
[1625542799866,13.49128174,33903.0,33899.0,0.00349808]
[1625542799964,13.40288174,33903.0,33899.0,0.06249808]
[1625542800163,13.40288174,33903.0,33899.0,0.059]
[1625542800414,0.01593432,33902.0,33900.0,0.00349808]
[1625542800514,0.01593432,33902.0,33900.0,0.06249808]
[1625542800915,0.01593432,33902.0,33901.0,0.00349815]
[1625542801318,0.10323432,33902.0,33901.0,0.00349815]
[1625542801416,0.10323432,33902.0,33898.0,0.002]
[1625542801417,7.60935088,33902.0,33899.0,0.00349812]
[1625542801516,7.60935088,33902.0,33899.0,0.06249812]
[1625542801716,7.50613758,33900.0,33899.0,0.06249812]
[1625542802017,7.50613758,33900.0,33898.0,0.002]
[1625542802119,7.50613758,33900.0,33896.0,0.004]
[1625542802219,8.02207249,33900.0,33896.0,0.059]
[1625542802324,8.02207249,33900.0,33895.0,0.05131999]
[1625542802421,8.08107249,33900.0,33894.0,0.86191133]
[1625542802521,0.01593631,33899.0,33894.0,0.71321133]
[1625542802622,0.07493631,33899.0,33894.0,0.65331133]
[1625542802724,0.38595631,33899.0,33894.0,0.65331133]
[1625542802823,0.5,33898.0,33895.0,0.00349878]
[1625542802923,6.98170276,33896.0,33895.0,0.00349878]
[1625542803023,7.04070276,33896.0,33895.0,0.00349878]
[1625542803124,7.04070276,33896.0,33892.0,0.008]
[1625542803323,7.05664029,33896.0,33892.0,0.008]
[1625542803625,0.01594943,33895.0,33892.0,0.008]
[1625542803976,0.72172632,33893.0,33892.0,0.008]
[1625542804376,7.71435467,33893.0,33892.0,0.0034991]
[1625542804575,7.71435467,33893.0,33886.0,0.34539059]
[1625542804778,7.71435467,33893.0,33886.0,0.46339059]
[1625542804882,0.01596939,33892.0,33887.0,0.00349901]
[1625542804978,0.01596939,33892.0,33887.0,0.059]
[1625542805076,0.26062939,33892.0,33887.0,0.059]
[1625542805478,0.01598184,33891.0,33888.0,0.00349919]
[1625542805578,1.76028376,33891.0,33888.0,0.06249919]
[1625542805677,1.76028376,33891.0,33888.0,0.059]
[1625542805931,1.76028376,33891.0,33889.0,0.00349922]
[1625542806029,0.25655741,33890.0,33889.0,0.06249922]
[1625542806131,1.999298,33890.0,33889.0,0.06249922]
[1625542806530,5.48470323,33890.0,33889.0,0.06249922]
[1625542806629,10.72290323,33890.0,33889.0,0.06249922]
[1625542806730,10.70692126,33890.0,33889.0,0.059]
[1625542811542,10.70692126,33890.0,33889.0,0.35191]
[1625542813242,9.13851236,33890.0,33889.0,0.35191]
[1625542815594,6.52443945,33890.0,33889.0,0.35191]
[1625542815693,5.47877544,33890.0,33889.0,0.35191]
[1625542815896,9.13196473,33890.0,33889.0,0.35191]
[1625542817294,9.13396473,33890.0,33889.0,0.35191]
[1625542818599,9.13396473,33890.0,33889.0,0.059]
[1625542821756,9.22236473,33890.0,33889.0,0.059]
[1625542821857,9.72236473,33890.0,33889.0,0.059]